fUSD/lending_fUSD_20250826
["ID","MTS","AMOUNT","RATE_DAILY","PERIOD"]
[381468440,1756224639682,-11718.17227099,0.00024473,2]
[381468441,1756224639692,-200.0,0.00024482,2]
[381468442,1756224639701,-200.0,0.00024482,2]
[381468443,1756224639712,-200.0,0.00024482,2]
[381468444,1756224639722,-200.0,0.0002451,7]
[381468445,1756224639733,-1000.0,0.00024521,2]
[381468446,1756224639742,-1000.0,0.00024521,2]
[381468447,1756224639753,-1000.0,0.00024521,2]
[381468448,1756224639763,-159.91864871,0.0002455,15]
[381468449,1756224639773,-150.0,0.00024558,4]
[381468450,1756224639782,-539.77,0.00024558,2]
[381468451,1756224639793,-2371.64,0.00024558,2]
[381468453,1756224639805,-150.0,0.00024558,2]
[381468454,1756224639814,-173.79,0.00024558,2]
[381468455,1756224639824,-150.0,0.00024558,2]
[381468456,1756224639833,-165.35,0.00024558,2]
[381468457,1756224639844,-150.0,0.00024558,2]
[381468458,1756224639854,-408.65,0.00024558,2]
[381468459,1756224639863,-166.12,0.00024558,2]
[381468460,1756224639873,-191.55,0.00024561,2]
[381468461,1756224639883,-200.0,0.0002461,7]
[381468462,1756224639893,-800.0,0.00024616,2]
[381468463,1756224639903,-3550.21764,0.0002464,2]
[381468464,1756224639912,-150.0,0.00024647,4]
[381468465,1756224639922,-584.64097721,0.0002465,2]
[381468466,1756224639932,-163.6217749,0.0002465,2]
[381468468,1756224639942,-1000.0,0.00024658,2]
[381468470,1756224639951,-200.8571581,0.00024658,2]
[381468473,1756224639961,-150.0,0.00024658,2]
[381468475,1756224639970,-150.0,0.00024658,2]
[381468477,1756224639980,-300.0,0.00024658,2]
[381468479,1756224639990,-978.0,0.00024658,2]
[381468481,1756224640000,-200.0,0.00024658,2]
[381468482,1756224640009,-500.0,0.00024658,2]
[381468483,1756224640020,-744.0,0.00024658,2]
[381468484,1756224640033,-326.00653689,0.00024658,2]
[381468485,1756224640043,-500.0,0.00024658,2]
[381468486,1756224640052,-500.0,0.00024658,2]
[381468487,1756224640063,-563.0,0.00024658,2]
[381468489,1756224640073,-217.15233878,0.00024658,2]
[381468491,1756224640083,-186.80771682,0.00024667,2]
[381468493,1756224640093,-500.0,0.00024699,2]
[381468495,1756224640103,-423.19716914,0.00024699,2]
[381468497,1756224640113,-200.0,0.0002471,7]
[381468499,1756224640123,-200.0,0.00024727,2]
[381468501,1756224640133,-200.0,0.00024727,2]
[381468503,1756224640143,-150.0,0.00024737,4]
[381468505,1756224640152,-558.6644433,0.00024739,2]
[381468506,1756224640162,-47488.96923087,0.0002474,2]
[381468507,1756224640172,-652.49161577,0.0002474,2]
[381468508,1756224640182,-844.63891918,0.000248,3]
[381468509,1756224640191,-160.0,0.000248,3]
[381468510,1756224640201,-603369.678185,0.000248,3]
[381468511,1756224640210,-160.0,0.000248,3]
[381468512,1756224640219,-212.18043798,0.000248,3]
[381468513,1756224640229,-458.7662338,0.000248,3]
[381468514,1756224640239,-1500.0,0.00024804,2]
[381468515,1756224640250,-9225.14443178,0.00024807,2]
[381468516,1756224640261,-11718.17227099,0.00024821,2]
[381468517,1756224640271,-150.0,0.00024827,4]
[381468518,1756224640281,-150.0,0.00024828,2]
[381468519,1756224640290,-3000.0,0.00024829,2]
[381468520,1756224640299,-1700.0,0.00024829,2]
[381468521,1756224640309,-4045.0,0.00024877,2]
[381468522,1756224640318,-192.86815548,0.000249,2]
[381468523,1756224640328,-411.7485324,0.000249,2]
[381468524,1756224640337,-611773.873255,0.000249,3]
[381468525,1756224640347,-3391.80828942,0.000249,2]
[381468526,1756224640357,-28613.05669513,0.000249,2]
[381468527,1756224640367,-2062.14,0.00024903,2]
[381468528,1756224640377,-1658.0,0.00024903,2]
[381468529,1756224640386,-1298.0,0.00024903,2]
[381468530,1756224640396,-599.0,0.00024903,2]
[381468531,1756224640406,-566.0,0.00024903,2]
[381468532,1756224640416,-4675.376,0.00024903,2]
[381468534,1756224640426,-4155.0,0.00024903,2]
[381468535,1756224640436,-895.0,0.00024903,2]
[381468537,1756224640446,-600.0,0.00024904,2]
[381468538,1756224640456,-200.0,0.0002491,7]
[381468539,1756224640466,-150.0,0.00024917,4]
[381468540,1756224640476,-685.0,0.00024932,7]
[381468541,1756224640486,-153.0,0.00024932,2]
[381468542,1756224640496,-150.0,0.00024932,2]
[381468543,1756224640510,-150.0,0.00024932,2]
[381468544,1756224640521,-978.0,0.00024932,2]
[381468545,1756224640531,-500.0,0.00024932,2]
[381468546,1756224640542,-744.0,0.00024932,2]
[381468547,1756224640552,-500.0,0.00024932,2]
[381468548,1756224640564,-563.0,0.00024932,2]
[381468549,1756224640575,-200.0,0.00024974,2]
[381468550,1756224640585,-200.0,0.00024974,2]
[381468551,1756224640595,-6002.05,0.00025,7]
[381468552,1756224640605,-202.93925905,0.00025,2]
[381468553,1756224640615,-1745.36497707,0.00025,2]
[381468554,1756224640625,-4688.70204753,0.00025,2]
[381468555,1756224640635,-274.79653458,0.00025,2]
[381468556,1756224640645,-360.0,0.00025,2]
[381468557,1756224640655,-2976.49883909,0.00025,2]
[381468558,1756224640666,-3162.45223389,0.00025,2]
[381468559,1756224640677,-9671.43318318,0.00025,2]
[381468560,1756224640762,-986.12943079,0.00025,2]
[381468561,1756224640774,-3372.26745402,0.00025,2]
[381468562,1756224640784,-1264.81236431,0.00025,10]
[381468563,1756224640794,-15002.03245139,0.00025,2]
[381468564,1756224640807,-1040.71608703,0.00025,2]
[381468565,1756224640817,-163.57704232,0.00025,2]
[381468566,1756224640828,-2621.0,0.00025,2]
[381468567,1756224640838,-844.63891918,0.00025,3]
[381468568,1756224640849,-1395.95,0.00025,7]
[381468569,1756224640861,-4976.2,0.00025,7]
[381468570,1756224640872,-20480.46211167,0.00025,2]
[381468571,1756224640882,-150.0,0.00025,2]
[381468572,1756224640893,-150.0,0.00025,2]
[381468573,1756224640904,-150.0,0.00025,2]
[381468574,1756224640915,-150.0,0.00025,2]
[381468575,1756224640926,-150.0,0.00025,2]
[381468576,1756224640937,-150.0,0.00025,2]
[381468577,1756224640947,-150.0,0.00025,2]
[381468578,1756224640958,-150.0,0.00025,2]
[381468579,1756224640968,-150.0,0.00025,2]
[381468580,1756224640979,-150.0,0.00025,2]
[381468581,1756224640990,-150.0,0.00025,2]
[381468582,1756224641001,-150.0,0.00025,2]
[381468583,1756224641011,-239.117,0.00025,2]
[381468584,1756224641022,-4023.9,0.00025,7]
[381468585,1756224641036,-1637.85,0.00025,7]
[381468586,1756224641047,-844.63891918,0.00025,7]
[381468587,1756224641059,-160.0,0.00025,7]
[381468588,1756224641070,-685.0,0.00025,7]
[381468589,1756224641081,-160.0,0.00025,7]
[381468590,1756224641092,-212.18043798,0.00025,7]
[381468591,1756224641103,-458.7662338,0.00025,7]
[381468592,1756224641114,-150.0,0.00025007,4]
[381468593,1756224641124,-14452.08697912,0.0002501,2]
[381468594,1756224641136,-547.91302088,0.0002501,2]
[381468595,1756224641147,-174.52065844,0.00025068,2]
[381468596,1756224641158,-541.02457972,0.00025068,2]
[381468597,1756224641175,-958.97542028,0.00025068,2]
[381468598,1756224641185,-1500.0,0.00025068,2]
[381468599,1756224641195,-630.0,0.0002507,2]
[381468600,1756224641206,-150.0,0.00025097,4]
[381468601,1756224641216,-200.0,0.000251,7]
[381468602,1756224641227,-217.0,0.000251,2]
[381468603,1756224641237,-3550.21765,0.0002514,2]
[381468604,1756224641247,-212.0,0.00025142,2]
[381468605,1756224641257,-212.0,0.00025142,2]
[381468606,1756224641268,-212.0,0.00025142,2]
[381468607,1756224641278,-212.0,0.00025142,2]
[381468608,1756224641288,-212.0,0.00025142,2]
[381468609,1756224641299,-212.0,0.00025142,2]
[381468610,1756224641310,-212.0,0.00025142,2]
[381468611,1756224641321,-212.0,0.00025142,2]
[381468612,1756224641331,-212.0,0.00025142,2]
[381468613,1756224641342,-212.0,0.00025142,2]
[381468614,1756224641352,-212.0,0.00025142,2]
[381468615,1756224641363,-212.0,0.00025142,2]
[381468616,1756224641373,-212.0,0.00025142,2]
[381468617,1756224641383,-212.0,0.00025142,2]
[381468618,1756224641393,-398.0,0.00025148,2]
[381468619,1756224641403,-398.0,0.00025148,2]
[381468620,1756224641414,-398.0,0.00025148,2]
[381468621,1756224641424,-398.0,0.00025148,2]
[381468622,1756224641434,-398.0,0.00025148,2]
[381468623,1756224641444,-398.0,0.00025148,2]
[381468624,1756224641454,-398.0,0.00025148,2]
[381468625,1756224641464,-398.0,0.00025148,2]
[381468626,1756224641475,-398.0,0.00025148,2]
[381468627,1756224641486,-398.0,0.00025148,2]
[381468628,1756224641496,-398.0,0.00025148,2]
[381468629,1756224641507,-398.0,0.00025148,2]
[381468630,1756224641517,-398.0,0.00025148,2]
[381468631,1756224641527,-398.0,0.00025148,2]
[381468632,1756224641537,-151.0,0.00025148,7]
[381468633,1756224641548,-151.0,0.00025148,7]
[381468634,1756224641559,-151.0,0.00025148,7]
[381468635,1756224641569,-151.0,0.00025148,7]
[381468636,1756224641579,-165.794426,0.00025148,7]
[381468637,1756224641589,-151.0,0.00025148,7]
[381468638,1756224641600,-151.0,0.00025148,7]
[381468639,1756224641610,-245.894408,0.00025148,7]
[381468640,1756224641622,-245.894408,0.00025148,7]
[381468641,1756224641632,-245.894408,0.00025148,7]
[381468642,1756224641642,-245.894408,0.00025148,7]
[381468643,1756224641652,-270.794714,0.00025148,7]
[381468644,1756224641663,-151.0,0.00025148,7]
[381468645,1756224641674,-151.0,0.00025148,7]
[381468646,1756224641685,-183.027664,0.00025148,7]
[381468647,1756224641695,-151.0,0.00025148,7]
[381468648,1756224641706,-151.0,0.00025148,7]
[381468649,1756224641716,-521.798256,0.00025148,7]
[381468650,1756224641727,-151.0,0.00025148,7]
[381468651,1756224641738,-521.798256,0.00025148,7]
[381468652,1756224641750,-151.0,0.00025148,7]
[381468653,1756224641761,-521.798256,0.00025148,7]
[381468654,1756224641771,-212.0,0.00025169,2]
[381468655,1756224641781,-212.0,0.00025169,2]
[381468656,1756224641793,-212.0,0.00025169,2]
[381468657,1756224641804,-212.0,0.00025169,2]
[381468658,1756224641815,-212.0,0.00025169,2]
[381468659,1756224641826,-212.0,0.00025169,2]
[381468660,1756224641837,-212.0,0.00025169,2]
[381468661,1756224641849,-212.0,0.00025169,2]
[381468662,1756224641859,-212.0,0.00025169,2]
[381468663,1756224641870,-212.0,0.00025169,2]
[381468664,1756224641881,-212.0,0.00025169,2]
[381468665,1756224641892,-212.0,0.00025169,2]
[381468666,1756224641903,-212.0,0.00025169,2]
[381468667,1756224641914,-11718.17227099,0.00025169,2]
[381468668,1756224641925,-398.0,0.00025174,2]
[381468669,1756224641935,-398.0,0.00025174,2]
[381468670,1756224641946,-398.0,0.00025174,2]
[381468671,1756224641957,-398.0,0.00025174,2]
[381468672,1756224641968,-398.0,0.00025174,2]
[381468673,1756224641978,-398.0,0.00025174,2]
[381468674,1756224641989,-398.0,0.00025174,2]
[381468675,1756224641999,-398.0,0.00025174,2]
[381468676,1756224642009,-398.0,0.00025174,2]
[381468677,1756224642020,-398.0,0.00025174,2]
[381468678,1756224642032,-398.0,0.00025174,2]
[381468679,1756224642043,-398.0,0.00025174,2]
[381468680,1756224642053,-398.0,0.00025174,2]
[381468681,1756224642063,-150.0,0.00025187,4]
[381468682,1756224642075,-685.0,0.00025205,7]
[381468683,1756224642086,-250.0,0.00025206,2]
[381468684,1756224642097,-250.0,0.00025206,2]
[381468685,1756224642107,-978.0,0.00025206,2]
[381468686,1756224642118,-500.0,0.00025206,2]
[381468687,1756224642129,-744.0,0.00025206,2]
[381468688,1756224642141,-500.0,0.00025206,2]
[381468689,1756224642151,-563.0,0.00025206,2]
[381468690,1756224642162,-225.18697532,0.00025206,2]
[381468691,1756224642172,-150.0,0.00025277,4]
[381468692,1756224642183,-926.0,0.00025278,2]
[381468693,1756224642193,-2031.0,0.00025278,2]
[381468694,1756224642203,-209.0,0.000253,2]
[381468695,1756224642213,-229.0,0.000253,2]
[381468696,1756224642224,-200.0,0.0002531,7]
[381468697,1756224642234,-9225.14443178,0.00025333,2]
[381468698,1756224642244,-1000.0,0.00025342,2]
[381468699,1756224642255,-150.0,0.00025367,4]
[381468700,1756224642266,-1500.0,0.00025377,2]
[381468701,1756224642277,-16988.1036592,0.00025378,7]
[381468702,1756224642287,-600.0,0.00025452,2]
[381468703,1756224642298,-150.0,0.00025457,4]
[381468704,1756224642312,-685.0,0.00025479,7]
[381468705,1756224642323,-299.47059111,0.00025479,2]
[381468706,1756224642334,-978.0,0.0002548,2]
[381468707,1756224642344,-500.0,0.0002548,2]
[381468708,1756224642355,-744.0,0.0002548,2]
[381468709,1756224642366,-500.0,0.0002548,2]
[381468710,1756224642378,-563.0,0.0002548,2]
[381468711,1756224642389,-800.0,0.00025505,2]
[381468712,1756224642399,-11718.17227099,0.00025518,2]
[381468713,1756224642410,-150.0,0.00025547,4]
[381468714,1756224642422,-373.07297731,0.00025572,2]
[381468715,1756224642434,-298.26089446,0.00025572,2]
[381468716,1756224642451,-380.28,0.00025589,2]
[381468717,1756224642470,-200.0,0.0002561,7]
[381468718,1756224642486,-2000.0,0.00025616,2]
[381468719,1756224642497,-2000.0,0.00025616,2]
[381468720,1756224642510,-150.0,0.00025637,4]
[381468721,1756224642521,-3550.21764,0.0002564,2]
[381468722,1756224642532,-150.0,0.00025727,4]
[381468723,1756224642544,-685.0,0.00025753,7]
[381468724,1756224642556,-978.0,0.00025754,2]
[381468725,1756224642567,-500.0,0.00025754,2]
[381468726,1756224642578,-744.0,0.00025754,2]
[381468727,1756224642588,-500.0,0.00025754,2]
[381468728,1756224642598,-563.0,0.00025754,2]
[381468729,1756224642609,-233.51889341,0.00025754,2]
[381468730,1756224642620,-509.0,0.00025767,2]
[381468731,1756224642630,-1000.0,0.00025779,2]
[381468732,1756224642640,-164.49898994,0.00025792,2]
[381468733,1756224642651,-1159.41,0.00025797,2]
[381468734,1756224642664,-1000.0,0.000258,4]
[381468735,1756224642674,-150.0,0.00025817,4]
[381468736,1756224642688,-9225.14443178,0.00025858,2]
[381468737,1756224642710,-11718.17227099,0.00025866,2]
[381468738,1756224642729,-186.80771682,0.00025873,2]
[381468739,1756224642751,-685.0,0.0002589,7]
[381468740,1756224642774,-150.0,0.00025907,4]
[381468741,1756224642798,-200.0,0.0002591,7]
[381468742,1756224642822,-3000.0,0.00025925,2]
[381468743,1756224642845,-1700.0,0.00025925,2]
[381468744,1756224642869,-217.0,0.0002595,2]
[381468745,1756224642893,-300.0,0.00025989,10]
[381468746,1756224642917,-587.10090826,0.0002599,2]
[381468747,1756224642941,-150.0,0.00025997,4]
[381468748,1756224642965,-6002.05,0.00026,7]
[381468750,1756224642989,-4421.34490359,0.00026,2]
[381468751,1756224643012,-4433.65,0.00026,2]
[381468752,1756224643030,-2668.11923443,0.00026,2]
[381468753,1756224643041,-211.59058449,0.00026,2]
[381468754,1756224643052,-1395.95,0.00026,7]
[381468755,1756224643064,-4976.2,0.00026,7]
[381468756,1756224643075,-4023.9,0.00026,7]
[381468757,1756224643086,-1637.85,0.00026,7]
[381468758,1756224643096,-844.63891918,0.00026,7]
[381468759,1756224643109,-1057.85,0.00026,2]
[381468760,1756224643121,-160.0,0.00026,7]
[381468761,1756224643131,-160.0,0.00026,7]
[381468762,1756224643142,-212.18043798,0.00026,7]
[381468763,1756224643153,-458.7662338,0.00026,7]
[381468764,1756224643164,-600.0,0.00026,2]
[381468765,1756224643174,-685.0,0.00026027,7]
[381468766,1756224643185,-978.0,0.00026028,2]
[381468767,1756224643195,-500.0,0.00026028,2]
[381468768,1756224643206,-744.0,0.00026028,2]
[381468769,1756224643216,-500.0,0.00026028,2]
[381468770,1756224643227,-563.0,0.00026028,2]
[381468771,1756224643237,-150.0,0.00026087,4]
[381468772,1756224643248,-213.0,0.0002613,2]
[381468773,1756224643259,-209.0,0.0002613,2]
[381468774,1756224643269,-229.0,0.0002613,2]
[381468775,1756224643279,-150.0,0.00026133,2]
[381468776,1756224643290,-3550.21764,0.0002614,2]
[381468777,1756224643300,-247.20656508,0.00026164,2]
[381468778,1756224643311,-2500.0,0.00026164,2]
[381468779,1756224643322,-423.1971691,0.00026177,2]
[381468780,1756224643332,-150.0,0.00026177,4]
[381468781,1756224643342,-11718.17227099,0.00026214,2]
[381468782,1756224643353,-617.0,0.0002625,2]
[381468783,1756224643363,-150.0,0.00026267,4]
[381468785,1756224643374,-300.0,0.00026282,10]
[381468786,1756224643384,-28613.05669499,0.00026293,5]
[381468787,1756224643394,-300.0,0.00026299,10]
[381468788,1756224643404,-35145.8,0.000263,2]
[381468789,1756224643414,-3391.80828942,0.000263,2]
[381468790,1756224643424,-1000.0,0.00026301,2]
[381468793,1756224643435,-978.0,0.00026302,2]
[381468794,1756224643446,-500.0,0.00026302,2]
[381468795,1756224643456,-744.0,0.00026302,2]
[381468796,1756224643467,-500.0,0.00026302,2]
[381468797,1756224643477,-563.0,0.00026302,2]
[381468798,1756224643487,-242.15909246,0.00026302,2]
[381468799,1756224643498,-2062.14,0.00026355,7]
[381468800,1756224643508,-150.0,0.00026357,4]
[381468801,1756224643519,-9225.14443178,0.00026384,2]
[381468802,1756224643529,-800.0,0.00026395,2]
[381468803,1756224643540,-26872.21858646,0.000264,2]
[381468804,1756224643550,-151.0,0.000264,7]
[381468805,1756224643561,-151.0,0.000264,7]
[381468806,1756224643571,-295.646148,0.000264,7]
[381468807,1756224643583,-492.45,0.000264,7]
[381468808,1756224643593,-492.45,0.000264,7]
[381468809,1756224643603,-492.45,0.000264,7]
[381468810,1756224643613,-492.45,0.000264,7]
[381468811,1756224643624,-151.0,0.000264,7]
[381468812,1756224643634,-151.0,0.000264,7]
[381468813,1756224643644,-151.0,0.000264,7]
[381468814,1756224643655,-151.0,0.000264,7]
[381468815,1756224643665,-151.0,0.000264,7]
[381468816,1756224643675,-151.0,0.000264,7]
[381468817,1756224643686,-151.0,0.000264,7]
[381468818,1756224643696,-151.0,0.000264,7]
[381468819,1756224643707,-151.0,0.000264,7]
[381468820,1756224643718,-151.0,0.000264,7]
[381468821,1756224643728,-150.0,0.00026447,4]
[381468822,1756224643738,-1500.0,0.00026473,2]
[381468823,1756224643748,-151.0,0.0002649,7]
[381468824,1756224643759,-186.998784,0.0002649,7]
[381468825,1756224643769,-151.0,0.0002649,7]
[381468826,1756224643779,-151.0,0.0002649,7]
[381468827,1756224643790,-151.0,0.0002649,7]
[381468828,1756224643800,-151.0,0.0002649,7]
[381468829,1756224643812,-151.0,0.0002649,7]
[381468830,1756224643822,-151.0,0.0002649,7]
[381468831,1756224643833,-195.250976,0.0002649,7]
[381468832,1756224643844,-151.0,0.0002649,7]
[381468833,1756224643856,-151.0,0.0002649,7]
[381468834,1756224643867,-151.0,0.0002649,7]
[381468835,1756224643877,-151.0,0.0002649,7]
[381468836,1756224643889,-151.0,0.0002649,7]
[381468837,1756224643900,-151.0,0.0002649,7]
[381468838,1756224643910,-151.0,0.0002649,7]
[381468839,1756224643921,-490.731049,0.0002649,7]
[381468840,1756224643931,-490.731049,0.0002649,7]
[381468841,1756224643941,-490.731049,0.0002649,7]
[381468842,1756224643951,-151.0,0.0002649,7]
[381468843,1756224643961,-490.731049,0.0002649,7]
[381468844,1756224643971,-151.0,0.0002649,7]
[381468845,1756224643981,-151.0,0.0002649,7]
[381468846,1756224643991,-151.0,0.0002649,7]
[381468847,1756224644002,-151.0,0.0002649,7]
[381468848,1756224644012,-151.0,0.0002649,7]
[381468849,1756224644024,-268.877106,0.0002649,7]
[381468850,1756224644036,-151.0,0.0002649,7]
[381468851,1756224644047,-151.0,0.0002649,7]
[381468852,1756224644060,-300.0,0.00026499,10]
[381468853,1756224644071,-46834.75157463,0.000265,2]
[381468854,1756224644081,-151.0,0.000265,7]
[381468855,1756224644091,-150.0,0.00026537,4]
[381468856,1756224644103,-600.0,0.00026548,2]
[381468857,1756224644113,-11718.17227099,0.00026562,2]
[381468858,1756224644123,-978.0,0.00026576,2]
[381468859,1756224644133,-500.0,0.00026576,2]
[381468860,1756224644503,-744.0,0.00026576,2]
[381468861,1756224644525,-500.0,0.00026576,2]
[381468862,1756224644535,-563.0,0.00026576,2]
[381468863,1756224644544,-150.0,0.00026626,4]
[381468864,1756224644553,-276.04,0.00026676,2]
[381468865,1756224644564,-250.0,0.00026681,2]
[381468866,1756224644575,-1000.0,0.00026712,2]
[381468867,1756224644584,-150.0,0.00026716,4]
[381468868,1756224644594,-301.72,0.00026718,2]
[381468869,1756224644604,-200.0,0.0002679,2]
[381468870,1756224644613,-200.0,0.0002679,3]
[381468871,1756224644623,-163.38670319,0.00026795,30]
[381468872,1756224644633,-217.0,0.000268,2]
[381468873,1756224644642,-150.0,0.00026806,4]
[381468874,1756224644651,-978.0,0.0002685,2]
[381468875,1756224644661,-500.0,0.0002685,2]
[381468876,1756224644671,-744.0,0.0002685,2]
[381468877,1756224644681,-500.0,0.0002685,2]
[381468878,1756224644691,-563.0,0.0002685,2]
[381468879,1756224644700,-269.44939564,0.0002685,2]
[381468880,1756224644711,-150.0,0.00026896,4]
[381468881,1756224644721,-4023.9,0.000269,7]
[381468882,1756224644731,-1637.85,0.000269,7]
[381468883,1756224644740,-9225.14443178,0.0002691,2]
[381468884,1756224644750,-11718.17227099,0.0002691,2]
[381468885,1756224644759,-331.1981181,0.0002691,5]
[381468886,1756224644770,-2733.4277938,0.0002691,4]
[381468887,1756224644780,-1366.59651484,0.0002691,4]
[381468888,1756224644838,-1366.83127896,0.0002691,4]
[381468889,1756224644848,-2733.4277938,0.0002691,4]
[381468890,1756224644859,-1281.26709198,0.0002691,4]
[381468891,1756224644871,-1277.29231165,0.0002691,4]
[381468892,1756224644884,-174.86839017,0.0002691,4]
[381468893,1756224644895,-1123.21597024,0.0002691,4]
[381468894,1756224644910,-1610.21182356,0.0002691,4]
[381468895,1756224644920,-2733.4277938,0.0002691,4]
[381468896,1756224644930,-2733.4277938,0.0002691,4]
[381468897,1756224644940,-2733.4277938,0.0002691,4]
[381468898,1756224644950,-2733.4277938,0.0002691,4]
[381468899,1756224644961,-2733.4277938,0.0002691,4]
[381468900,1756224644971,-2733.4277938,0.0002691,4]
[381468901,1756224644981,-2733.4277938,0.0002691,4]
[381468902,1756224644990,-2733.4277938,0.0002691,4]
[381468903,1756224645002,-2733.4277938,0.0002691,4]
[381468904,1756224645012,-2733.4277938,0.0002691,4]
[381468905,1756224645023,-2733.4277938,0.0002691,4]
[381468906,1756224645040,-2733.4277938,0.0002691,4]
[381468907,1756224645063,-2733.4277938,0.0002691,4]
[381468908,1756224645074,-458.55310216,0.0002691,4]
[381468909,1756224645088,-2274.87469164,0.0002691,4]
[381468910,1756224645097,-2491.27934827,0.0002691,4]
[381468911,1756224645111,-242.14065173,0.0002691,4]
[381468912,1756224645120,-470.35934827,0.0002691,4]
[381468913,1756224645210,-151.0,0.00025148,7]
[381468914,1756224645220,-249.71904,0.00025148,7]
[381468915,1756224645233,-272.079216,0.00025148,7]
[381468916,1756224645242,-330.30078395,0.0002691,4]
[381468917,1756224645323,-798.58184373,0.0002691,4]
[381468918,1756224645332,-374.45955627,0.0002691,4]
[381468919,1756224645343,-1224.78241968,0.0002691,4]
[381468920,1756224645354,-1599.24197595,0.0002691,4]
[381468921,1756224645363,-1045.57560437,0.0002691,4]
[381468922,1756224646037,-1173.0,0.00018903,2]
[381468923,1756224646052,-14.5330515,0.00018909,2]
[381468924,1756224646078,-138.4669485,0.00018909,2]
[381468925,1756224646090,-153.0,0.00018909,2]
[381468926,1756224646100,-153.0,0.00018909,2]
[381468927,1756224646112,-153.0,0.00018909,2]
[381468928,1756224646123,-151.0,0.00025148,7]
[381468929,1756224646132,-151.0,0.00025148,7]
[381468930,1756224646142,-151.0,0.00025148,7]
[381468931,1756224646152,-1000.0,0.00026528,2]
[381468932,1756224646162,-553.66637158,0.0002691,4]
[381468933,1756224646173,-1599.24197595,0.0002691,4]
[381468934,1756224646182,-1599.24197595,0.0002691,4]
[381468935,1756224646192,-1599.24197595,0.0002691,4]
[381468936,1756224646202,-1599.24197595,0.0002691,4]
[381468937,1756224646212,-1599.24197595,0.0002691,4]
[381468938,1756224646222,-1599.24197595,0.0002691,4]
[381468939,1756224646232,-1599.24197595,0.0002691,4]
[381468940,1756224646241,-1599.24197595,0.0002691,4]
[381468941,1756224646251,-1599.24197595,0.0002691,4]
[381468942,1756224646260,-1599.24197595,0.0002691,4]
[381468943,1756224646270,-1599.24197595,0.0002691,4]
[381468944,1756224646279,-799.30992219,0.0002691,4]
[381468945,1756224646296,-1173.0,0.00021903,2]
[381468946,1756224646306,-799.93205376,0.0002691,4]
[381468947,1756224646317,-1599.24197595,0.0002691,4]
[381468948,1756224646328,-1599.24197595,0.0002691,4]
[381468949,1756224646337,-1599.24197595,0.0002691,4]
[381468950,1756224646346,-1599.24,0.0002691,4]
[381468951,1756224646356,-1348.02215369,0.0002691,4]
[381468952,1756224646365,-1348.02215369,0.0002691,4]
[381468953,1756224646375,-1348.02215369,0.0002691,4]
[381468955,1756224646385,-1348.02215369,0.0002691,4]
[381468956,1756224646394,-1348.02215369,0.0002691,4]
[381468957,1756224646403,-1348.02215369,0.0002691,4]
[381468958,1756224646413,-1348.02215369,0.0002691,4]
[381468959,1756224646422,-1348.02215369,0.0002691,4]
[381468960,1756224646431,-1348.02215369,0.0002691,4]
[381468961,1756224646440,-1348.02215369,0.0002691,4]
[381468962,1756224646450,-798.38048149,0.0002691,4]
[381468968,1756224845157,915.2395426,0.00015,120]
[381468969,1756224855665,915.2395426,0.00015,120]